[Event "SVK Extraliga 2019-20"]
[Site "Slovakia"]
[Date "2020.01.19"]
[Round "6.7"]
[White "Horvath, Mario"]
[Black "Bochnickova, Andrea"]
[Result "1/2-1/2"]
[ECO "A35"]
[WhiteElo "2197"]
[BlackElo "2112"]
[Annotator "NA"]
[PlyCount "100"]
[EventDate "2019.10.19"]
[EventType "team-tourn"]
[EventCountry "SVK"]
[SourceTitle "playchess.com"]
[Source "ChessBase"]
[SourceQuality "1"]
[WhiteTeam "Podhajska"]
[BlackTeam "Bratislava"]
[TimeControl "40/5400+30:1800+30"]

1. Nf3 {[%emt 0:00:00]} Nf6 {[%emt 0:00:00]} 2. c4 {[%emt 0:00:03]} c5 {[%emt 0:00:00]} 3. Nc3 {[%emt 0:01:56]} Nc6 {[%emt 0:00:04]} 4. g3 {[%emt 0:04:52]} d6 {[%emt 0:00:21]} 5. Bg2 {[%emt 0:01:00]} g6 {[%emt 0:00:24]} 6. O-O {[%emt 0:01:43]} Bg7 {[%emt 0:00:06]} 7. e4 {[%emt 0:23:41]} O-O {[%emt 0:00:38]} 8. d3 {[%emt 0:01:34]} Rb8 {[%emt 0:01:13]} 9. h3 {[%emt 0:05:13]} a6 {[%emt 0:00:59]} 10. a4 {[%emt 0:01:03]} e5 {[%emt 0:07:01]} 11. Ne1 {[%emt 0:14:12]} Nd4 {[%emt 0:06:45]} 12. Ne2 {[%emt 0:06:43]} Nxe2+ {[%emt 0:11:41]} 13. Qxe2 {[%emt 0:00:15]} b5 {[%emt 0:00:23]} 14. axb5 {[%emt 0:01:15]} axb5 {[%emt 0:00:06]} 15. b3 {[%emt 0:06:32]} Bd7 {[%emt 0:10:12]} 16. Nc2 {[%emt 0:02:59]} Qc7 {[%emt 0:03:08]} 17. Ne3 {[%emt 0:06:40]} bxc4 {[%emt 0:04:20]} 18. bxc4 {[%emt 0:00:08]} Rb3 {[%emt 0:00:35]} 19. Rd1 {[%emt 0:05:40]} Rfb8 {[%emt 0:01:34]} 20. Rd2 {[%emt 0:03:52]} Qb6 {[%emt 0:14:52]} 21. Rda2 {[%emt 0:00:31]} Rb1 {[%emt 0:02:25]} 22. Qc2 {[%emt 0:03:06]} Qb3 {[%emt 0:08:45]} 23. Qxb3 {[%emt 0:00:30]} R8xb3 {[%emt 0:02:52]} 24. Ra8+ {[%emt 0:00:17]} Ne8 {[%emt 0:01:29]} 25. Bf1 {[%emt 0:01:21]} Bh6 {[%emt 0:07:43]} 26. Kg2 {[%emt 0:04:35]} Kg7 {[%emt 0:01:05]} 27. R8a7 {[%emt 0:00:29]} Be6 {[%emt 0:05:16]} 28. Be2 {[%emt 0:00:08]} Bxe3 {[%emt 0:03:14]} 29. Bxe3 {[%emt 0:00:11]} Rxa1 {[%emt 0:01:07]} 30. Rxa1 {[%emt 0:00:02]} Rb6 {[%emt 0:01:56]} 31. Ra7 {[%emt 0:01:52]} h5 {[%emt 0:01:27]} 32. Bg5 {[%emt 0:00:50]} Nf6 {[%emt 0:00:40]} 33. Ra8 {[%emt 0:00:46]} Rb2 {[%emt 0:01:19]} 34. Bd1 {[%emt 0:00:17]} Nd7 {[%emt 0:01:04]} 35. Ra6 {[%emt 0:00:54]} Rb6 {[%emt 0:00:33]} 36. Rxb6 {[%emt 0:00:36]} Nxb6 {[%emt 0:00:03]} 37. Bd8 {[%emt 0:00:26]} Nc8 {[%emt 0:00:50]} 38. f3 {[%emt 0:00:44]} f6 {[%emt 0:00:34]} 39. g4 {[%emt 0:00:18]} hxg4 {[%emt 0:01:29]} 40. fxg4 {[%emt 0:00:04]} Bd7 {[%emt 0:00:13]} 41. h4 {[%emt 0:31:26]} Kf7 {[%emt 0:05:17]} 42. Kg3 {[%emt 0:00:00]} Ne7 {[%emt 0:01:46]} 43. Bc7 {[%emt 0:00:00]} Ke6 {[%emt 0:01:15]} 44. h5 {[%emt 0:00:00]} Be8 {[%emt 0:04:53]} 45. h6 {[%emt 0:00:00]} g5 {[%emt 0:01:10]} 46. Bd8 {[%emt 0:00:00]} Bg6 {[%emt 0:03:15]} 47. Ba4 {[%emt 0:00:00]} Ng8 {[%emt 0:00:31]} 48. Be8 {[%emt 0:00:00]} Bh7 {[%emt 0:00:13]} 49. Bc6 {[%emt 0:00:00]} Ne7 {[%emt 0:05:31]} 50. Be8 {[%emt 0:00:00]} Ng8 1/2-1/2

[Event "SVK Extraliga 2019-20"]
[Site "Slovakia"]
[Date "2020.01.19"]
[Round "6.7"]
[White "Tropp, Lukas"]
[Black "Brnusak, Tomas"]
[Result "1/2-1/2"]
[ECO "B30"]
[WhiteElo "2132"]
[BlackElo "2032"]
[Annotator "ChessBase"]
[PlyCount "64"]
[EventDate "2019.10.19"]
[EventType "team-tourn"]
[EventCountry "SVK"]
[SourceTitle "playchess.com"]
[Source "ChessBase"]
[SourceQuality "1"]
[WhiteTeam "Košice"]
[BlackTeam "Liptovska"]
[TimeControl "40/5400+30:1800+30"]

1. e4 {[%emt 0:00:00]} c5 {[%emt 0:00:06]} 2. Nf3 {[%emt 0:00:00]} Nc6 {[%emt 0:00:45]} 3. Bb5 {[%emt 0:00:00]} Nd4 {[%emt 0:01:42]} 4. Nxd4 {[%emt 0:04:30]} cxd4 {[%emt 0:00:11]} 5. O-O {[%emt 0:00:13]} g6 {[%emt 0:03:08]} 6. c3 {[%emt 0:11:05]} dxc3 {[%emt 0:08:32]} 7. Nxc3 {[%emt 0:01:06]} Bg7 {[%emt 0:01:27]} 8. d4 {[%emt 0:07:46]} a6 {[%emt 0:02:25]} 9. Bc4 {[%emt 0:06:56]} e6 {[%emt 0:06:17]} 10. e5 {[%emt 0:09:44]} f5 {[%emt 0:13:17]} 11. exf6 {[%emt 0:13:38]} Nxf6 {[%emt 0:00:22]} 12. d5 {[%emt 0:00:03]} O-O {[%emt 0:03:01]} 13. dxe6 {[%emt 0:01:00]} dxe6 {[%emt 0:00:15]} 14. Qe2 {[%emt 0:00:56]} Re8 {[%emt 0:03:39]} 15. Rd1 {[%emt 0:00:54]} Qc7 {[%emt 0:01:08]} 16. Ne4 {[%emt 0:04:37]} Nxe4 {[%emt 0:01:59]} 17. Qxe4 {[%emt 0:00:11]} Kh8 {[%emt 0:01:09]} 18. Be3 {[%emt 0:04:00]} Bd7 {[%emt 0:03:09]} 19. Bd4 {[%emt 0:08:31]} e5 {[%emt 0:03:52]} 20. Bb6 {[%emt 0:02:33]} Qxb6 {[%emt 0:04:29]} 21. Rxd7 {[%emt 0:00:06]} Rf8 {[%emt 0:01:18]} 22. Bf7 {[%emt 0:09:24]} Rab8 {[%emt 0:07:48]} 23. Rad1 {[%emt 0:00:23]} Rbd8 {[%emt 0:02:56]} 24. h3 {[%emt 0:02:40]} Rxd7 {[%emt 0:02:08]} 25. Rxd7 {[%emt 0:00:06]} Qxb2 {[%emt 0:00:10]} 26. Rxb7 {[%emt 0:02:00]} Qd4 {[%emt 0:03:04]} 27. Qd5 {[%emt 0:01:15]} Rd8 {[%emt 0:03:08]} 28. Qe6 {[%emt 0:02:13]} Qf4 {[%emt 0:05:39]} 29. Rd7 {[%emt 0:02:47]} Qc1+ {[%emt 0:02:19]} 30. Kh2 {[%emt 0:00:05]} Qf4+ {[%emt 0:00:10]} 31. Kg1 {[%emt 0:00:04]} Rb8 {[%emt 0:02:18]} 32. Rb7 {[%emt 0:01:06]} Qc1+ {[%emt 0:00:27]} 1/2-1/2

[Event "SVK Extraliga 2019-20"]
[Site "Slovakia"]
[Date "2020.01.19"]
[Round "6.7"]
[White "Hanko, Pavol"]
[Black "Bombek, Peter"]
[Result "1/2-1/2"]
[ECO "D58"]
[WhiteElo "2107"]
[BlackElo "2165"]
[Annotator "ChessBase"]
[PlyCount "56"]
[EventDate "2019.10.19"]
[EventType "team-tourn"]
[EventCountry "SVK"]
[SourceTitle "playchess.com"]
[Source "ChessBase"]
[SourceQuality "1"]
[WhiteTeam "Dunajov"]
[BlackTeam "Dubnica"]
[TimeControl "40/5400+30:1800+30"]

1. d4 {[%emt 0:00:00]} d5 {[%emt 0:00:17]} 2. Nf3 {[%emt 0:00:00]} Nf6 {[%emt 0:00:16]} 3. c4 {[%emt 0:00:26]} e6 {[%emt 0:00:05]} 4. Bg5 {[%emt 0:00:35]} Be7 {[%emt 0:00:14]} 5. e3 {[%emt 0:00:34]} h6 {[%emt 0:00:21]} 6. Bh4 {[%emt 0:00:47]} O-O {[%emt 0:00:18]} 7. Nc3 {[%emt 0:00:23]} b6 {[%emt 0:00:54]} 8. Be2 {[%emt 0:02:25]} dxc4 {[%emt 0:01:49]} 9. Bxc4 {[%emt 0:02:06]} Bb7 {[%emt 0:00:16]} 10. O-O {[%emt 0:01:04]} Nbd7 {[%emt 0:00:40]} 11. Qe2 {[%emt 0:04:16]} Ne4 {[%emt 0:01:53]} 12. Bxe7 {[%emt 0:03:59]} Nxc3 {[%emt 0:01:16]} 13. bxc3 {[%emt 0:08:32]} Qxe7 {[%emt 0:00:15]} 14. Ba6 {[%emt 0:00:42]} Bxa6 {[%emt 0:06:07]} 15. Qxa6 {[%emt 0:00:42]} c5 {[%emt 0:03:28]} 16. a4 {[%emt 0:02:32]} Rfc8 {[%emt 0:14:58]} 17. h3 {[%emt 0:08:50]} Nf6 {[%emt 0:05:04]} 18. c4 {[%emt 0:16:32]} Rc7 {[%emt 0:05:40]} 19. Rfc1 {[%emt 0:06:09]} Rac8 {[%emt 0:03:56]} 20. a5 {[%emt 0:02:07]} cxd4 {[%emt 0:10:30]} 21. exd4 {[%emt 0:00:57]} Nd5 {[%emt 0:06:27]} 22. axb6 {[%emt 0:14:29]} axb6 {[%emt 0:01:22]} 23. Qb5 {[%emt 0:01:17]} Qb4 {[%emt 0:04:24]} 24. Qxb4 {[%emt 0:01:51]} Nxb4 {[%emt 0:00:49]} 25. Nd2 {[%emt 0:00:15]} Rd7 {[%emt 0:09:52]} 26. Nb3 {[%emt 0:02:48]} Rdc7 {[%emt 0:04:56]} 27. Nd2 {[%emt 0:03:57]} Rd7 {[%emt 0:01:24]} 28. Nb3 {[%emt 0:00:13]} Rdc7 {[%emt 0:00:14]} 1/2-1/2

[Event "SVK Extraliga 2019-20"]
[Site "Slovakia"]
[Date "2020.01.19"]
[Round "6.8"]
[White "Zetocha, Claudiu"]
[Black "Borhy, Marcell"]
[Result "1/2-1/2"]
[ECO "A05"]
[WhiteElo "2302"]
[BlackElo "2215"]
[Annotator "ChessBase"]
[PlyCount "42"]
[EventDate "2019.10.19"]
[EventType "team-tourn"]
[EventCountry "SVK"]
[SourceTitle "playchess.com"]
[Source "ChessBase"]
[SourceQuality "1"]
[WhiteTeam "Slovan"]
[BlackTeam "Streda"]
[TimeControl "40/5400+30:1800+30"]

1. Nf3 {[%emt 0:00:00]} Nf6 {[%emt 0:00:00]} 2. c4 {[%emt 0:00:59]} c6 {[%emt 0:01:08]} 3. b3 {[%emt 0:11:44]} d6 {[%emt 0:01:01]} 4. Bb2 {[%emt 0:05:54]} e5 {[%emt 0:00:17]} 5. d3 {[%emt 0:04:30]} g6 {[%emt 0:05:03]} 6. Nbd2 {[%emt 0:04:00]} Nbd7 {[%emt 0:01:58]} 7. Qc2 {[%emt 0:03:17]} Bg7 {[%emt 0:02:23]} 8. e3 {[%emt 0:06:20]} O-O {[%emt 0:00:30]} 9. Be2 {[%emt 0:00:03]} Re8 {[%emt 0:02:37]} 10. O-O {[%emt 0:00:10]} b6 {[%emt 0:02:07]} 11. b4 {[%emt 0:06:31]} Bb7 {[%emt 0:00:57]} 12. a4 {[%emt 0:04:34]} c5 {[%emt 0:14:42]} 13. b5 {[%emt 0:09:35]} a5 {[%emt 0:03:48]} 14. Rfd1 {[%emt 0:03:52]} Qc7 {[%emt 0:03:48]} 15. Rac1 {[%emt 0:01:10]} Nf8 {[%emt 0:02:04]} 16. Ng5 {[%emt 0:01:47]} h6 {[%emt 0:03:40]} 17. Nge4 {[%emt 0:00:05]} N6h7 {[%emt 0:02:24]} 18. Bf3 {[%emt 0:00:37]} Rad8 {[%emt 0:02:42]} 19. Nc3 {[%emt 0:00:10]} Bxf3 {[%emt 0:05:31]} 20. Nxf3 {[%emt 0:00:05]} Nf6 {[%emt 0:00:45]} 21. Nd2 {[%emt 0:01:25]} Qb7 {[%emt 0:02:43]} 1/2-1/2

[Event "SVK Extraliga 2019-20"]
[Site "Slovakia"]
[Date "2020.01.20"]
[Round "6.8"]
[White "Banas, Kamil"]
[Black "Jurcik, Martin"]
[Result "0-1"]
[ECO "B06"]
[WhiteElo "2261"]
[BlackElo "2372"]
[Annotator "ChessBase"]
[PlyCount "70"]
[EventDate "2019.10.19"]
[EventType "team-tourn"]
[EventCountry "SVK"]
[SourceTitle "playchess.com"]
[Source "ChessBase"]
[SourceQuality "1"]
[WhiteTeam "Modra"]
[BlackTeam "Zilina"]
[WhiteTeamCountry "SVK"]
[BlackTeamCountry "SVK"]
[TimeControl "40/5400+30:1800+30"]

1. e4 {[%emt 0:00:00]} g6 {[%emt 0:00:00]} 2. d4 {[%emt 0:00:22]} Bg7 {[%emt 0:00:13]} 3. Nc3 {[%emt 0:01:18]} d6 {[%emt 0:00:37]} 4. f4 {[%emt 0:00:28]} a6 {[%emt 0:00:46]} 5. Nf3 {[%emt 0:03:12]} b5 {[%emt 0:02:42]} 6. Bd3 {[%emt 0:01:10]} Bb7 {[%emt 0:01:39]} 7. O-O {[%emt 0:00:53]} Nd7 {[%emt 0:00:41]} 8. e5 {[%emt 0:01:50]} c5 {[%emt 0:02:30]} 9. exd6 {[%emt 0:01:45]} cxd4 {[%emt 0:03:30]} 10. dxe7 {[%emt 0:09:31]} Nxe7 {[%emt 0:01:30]} 11. Ne2 {[%emt 0:04:36]} Nc5 {[%emt 0:14:02]} 12. b4 {[%emt 0:03:05]} Nxd3 {[%emt 0:21:19]} 13. Qxd3 {[%emt 0:06:15]} Nf5 {[%emt 0:00:12]} 14. Bb2 {[%emt 0:04:39]} Bxf3 {[%emt 0:10:06]} 15. Rxf3 {[%emt 0:00:47]} O-O {[%emt 0:00:24]} 16. Rd1 {[%emt 0:02:20]} Rc8 {[%emt 0:05:06]} 17. Rf2 {[%emt 0:10:49]} Re8 {[%emt 0:11:40]} 18. h3 {[%emt 0:06:43]} Ne3 {[%emt 0:09:25]} 19. Rc1 {[%emt 0:00:54]} Rxc2 {[%emt 0:02:01]} 20. Rxc2 {[%emt 0:05:12]} Nxc2 {[%emt 0:00:01]} 21. a3 {[%emt 0:02:08]} Qc7 {[%emt 0:02:54]} 22. Nc1 {[%emt 0:04:57]} Re1+ {[%emt 0:03:24]} 23. Kh2 {[%emt 0:00:06]} Ne3 {[%emt 0:01:01]} 24. Nb3 {[%emt 0:04:41]} Qc4 {[%emt 0:01:22]} 25. Nc5 {[%emt 0:00:19]} Qxd3 {[%emt 0:04:09]} 26. Nxd3 {[%emt 0:00:02]} Rd1 {[%emt 0:00:06]} 27. Nc5 {[%emt 0:01:09]} Nf1+ {[%emt 0:01:01]} 28. Kg1 {[%emt 0:00:15]} Ne3+ {[%emt 0:00:12]} 29. Kh2 {[%emt 0:00:02]} Nf1+ {[%emt 0:00:15]} 30. Kg1 {[%emt 0:00:03]} Nd2+ {[%emt 0:00:05]} 31. Kh2 {[%emt 0:00:05]} Nc4 {[%emt 0:00:03]} 32. g4 {[%emt 0:02:29]} d3 {[%emt 0:01:13]} 33. Bxg7 {[%emt 0:00:28]} Kxg7 {[%emt 0:00:01]} 34. f5 {[%emt 0:00:53]} d2 {[%emt 0:01:22]} 35. f6+ {[%emt 0:01:18]} Kf8 {[%emt 0:01:07]} 0-1

[Event "SVK Extraliga 2019-20"]
[Site "Slovakia"]
[Date "2020.01.19"]
[Round "6.8"]
[White "Kusiak, Matej"]
[Black "Sepesi, Samuel"]
[Result "1-0"]
[ECO "B31"]
[WhiteElo "2245"]
[BlackElo "2169"]
[Annotator "NA"]
[PlyCount "119"]
[EventDate "2019.10.19"]
[EventType "team-tourn"]
[EventCountry "SVK"]
[SourceTitle "playchess.com"]
[Source "ChessBase"]
[SourceQuality "1"]
[WhiteTeam "Prakovce"]
[BlackTeam "Snina"]
[TimeControl "40/5400+30:1800+30"]

1. e4 {[%emt 0:00:00]} c5 {[%emt 0:00:00]} 2. Nf3 {[%emt 0:00:29]} Nc6 {[%emt 0:00:00]} 3. Bb5 {[%emt 0:00:08]} g6 {[%emt 0:00:00]} 4. Bxc6 {[%emt 0:00:03]} bxc6 {[%emt 0:00:02]} 5. O-O {[%emt 0:00:12]} Bg7 {[%emt 0:00:07]} 6. d3 {[%emt 0:00:45]} Nh6 {[%emt 0:03:51]} 7. Re1 {[%emt 0:01:23]} O-O {[%emt 0:00:14]} 8. Nbd2 {[%emt 0:00:46]} f5 {[%emt 0:04:29]} 9. e5 {[%emt 0:00:24]} Nf7 {[%emt 0:01:49]} 10. Nc4 {[%emt 0:05:39]} Qc7 {[%emt 0:15:11]} (10... d5 $5 {[%cal Rd5c4]} 11. Ncd2 Qb6 $11) 11. Bf4 {[%emt 0:01:37]} d6 $16 {[%emt 0:18:34]} 12. Qd2 {[%emt 0:01:37]} Ba6 {[%emt 0:02:23]} 13. Qa5 {[%emt 0:06:12]} Qxa5 {[%emt 0:03:57]} 14. Nxa5 {[%emt 0:00:29]} Rac8 {[%emt 0:02:15]} 15. Rad1 {[%emt 0:03:10]} Rc7 {[%emt 0:11:06]} 16. Nc4 {[%emt 0:03:02]} Rb7 {[%emt 0:14:21]} 17. b3 {[%emt 0:01:25]} Bxc4 {[%emt 0:01:48]} 18. dxc4 {[%emt 0:00:07]} g5 {[%emt 0:00:14]} 19. Nxg5 {[%emt 0:04:10]} Nxg5 {[%emt 0:01:00]} 20. Bxg5 {[%emt 0:03:13]} Bxe5 {[%emt 0:00:13]} 21. f4 {[%emt 0:00:19]} Bf6 {[%emt 0:04:41]} 22. Re6 {[%emt 0:00:09]} Kf7 {[%emt 0:02:41]} 23. Rde1 {[%emt 0:01:36]} Bxg5 {[%emt 0:00:33]} 24. fxg5 {[%emt 0:00:01]} Rg8 {[%emt 0:00:53]} 25. Rh6 {[%emt 0:01:16]} Rxg5 {[%emt 0:03:58]} 26. Rxh7+ {[%emt 0:00:04]} Rg7 {[%emt 0:01:04]} 27. Rh5 {[%emt 0:02:11]} Kg6 {[%emt 0:01:33]} 28. Rh8 {[%emt 0:00:08]} Rc7 {[%emt 0:02:15]} 29. Re6+ {[%emt 0:01:26]} Kf7 {[%emt 0:00:01]} 30. Reh6 {[%emt 0:00:35]} Rg8 {[%emt 0:01:08]} 31. Kf2 {[%emt 0:00:54]} Rcc8 {[%emt 0:01:22]} 32. R8h7+ {[%emt 0:00:52]} Rg7 {[%emt 0:00:01]} 33. Kf3 {[%emt 0:03:05]} Re8 {[%emt 0:02:00]} 34. Rh8 {[%emt 0:03:05]} Rxh8 {[%emt 0:02:16]} 35. Rxh8 {[%emt 0:00:02]} e5 {[%emt 0:00:12]} 36. g3 {[%emt 0:05:41]} Rg8 {[%emt 0:01:12]} 37. Rxg8 {[%emt 0:01:49]} Kxg8 {[%emt 0:00:02]} 38. c3 {[%emt 0:01:24]} a5 {[%emt 0:00:58]} 39. a3 {[%emt 0:00:04]} d5 {[%emt 0:00:29]} 40. cxd5 {[%emt 0:04:43]} cxd5 {[%emt 0:00:01]} 41. Ke2 {[%emt 0:48:35]} d4 {[%emt 0:23:16]} 42. b4 {[%emt 0:00:00]} dxc3 {[%emt 0:03:31]} 43. bxa5 {[%emt 0:00:00]} f4 {[%emt 0:00:26]} 44. a6 {[%emt 0:00:00]} f3+ {[%emt 0:00:35]} 45. Kxf3 {[%emt 0:00:00]} c2 {[%emt 0:00:05]} 46. a7 {[%emt 0:00:00]} c1=Q {[%emt 0:00:08]} 47. a8=Q+ {[%emt 0:00:00]} Kg7 {[%emt 0:01:02]} 48. Qb7+ {[%emt 0:00:00]} Kf6 {[%emt 0:00:31]} 49. Qa6+ {[%emt 0:00:00]} Ke7 {[%emt 0:00:31]} 50. Ke4 {[%emt 0:00:00]} Qc3 {[%emt 0:01:35]} 51. Qb7+ {[%emt 0:00:00]} Kf6 {[%emt 0:00:56]} 52. Qc6+ {[%emt 0:00:00]} Ke7 {[%emt 0:00:49]} 53. Kf5 {[%emt 0:00:41]} Qxa3 {[%emt 0:03:33]} 54. Qc7+ {[%emt 0:07:19]} Kf8 {[%emt 0:00:32]} 55. Qd8+ {[%emt 0:01:38]} Kf7 {[%emt 0:00:11]} 56. Qf6+ {[%emt 0:04:55]} Kg8 {[%emt 0:00:02]} 57. Qe6+ {[%emt 0:00:11]} Kf8 {[%emt 0:00:06]} 58. Qxe5 {[%emt 0:06:41]} Qd3+ {[%emt 0:01:07]} 59. Ke6 {[%emt 0:05:12]} c4 {[%emt 0:00:40]} 60. Qh8# {[%emt 0:02:09]} 1-0

[Event "SVK Extraliga 2019-20"]
[Site "Slovakia"]
[Date "2020.01.19"]
[Round "6.8"]
[White "Macko, Michal"]
[Black "Popovic, Martin"]
[Result "0-1"]
[ECO "B45"]
[WhiteElo "2168"]
[BlackElo "2037"]
[Annotator "NA"]
[PlyCount "54"]
[EventDate "2019.10.19"]
[EventType "team-tourn"]
[EventCountry "SVK"]
[SourceTitle "playchess.com"]
[Source "ChessBase"]
[SourceQuality "1"]
[WhiteTeam "Liptovska"]
[BlackTeam "Košice"]
[TimeControl "40/5400+30:1800+30"]

1. e4 {[%emt 0:00:00]} c5 {[%emt 0:00:00]} 2. Nc3 {[%emt 0:00:00]} e6 {[%emt 0:00:10]} 3. Nf3 {[%emt 0:00:34]} Nc6 {[%emt 0:01:06]} 4. d4 {[%emt 0:00:13]} cxd4 {[%emt 0:02:11]} 5. Nxd4 {[%emt 0:00:15]} Nf6 {[%emt 0:02:30]} 6. Nxc6 {[%emt 0:03:03]} bxc6 {[%emt 0:00:57]} 7. e5 {[%emt 0:00:04]} Nd5 {[%emt 0:02:09]} 8. Ne4 {[%emt 0:00:06]} Qc7 {[%emt 0:07:10]} 9. f4 {[%emt 0:03:56]} Rb8 {[%emt 0:12:13]} 10. c4 {[%emt 0:09:48]} Bb4+ {[%emt 0:07:07]} 11. Ke2 {[%emt 0:00:43]} Nb6 {[%emt 0:20:33]} 12. c5 {[%emt 0:03:07]} Nd5 {[%emt 0:01:55]} 13. Qd4 {[%emt 0:36:12]} O-O {[%emt 0:01:28]} 14. a3 {[%emt 0:04:20]} Ba5 {[%emt 0:05:22]} 15. b4 {[%emt 0:04:46]} Bxb4 {[%emt 0:00:31]} 16. Kf2 {[%emt 0:02:17]} Ba5 {[%emt 0:04:05]} 17. Bc4 {[%emt 0:00:23]} f6 {[%emt 0:03:45]} 18. exf6 {[%emt 0:01:25]} Nxf6 {[%emt 0:02:56]} 19. Nd6 {[%emt 0:01:31]} Bc3 {[%emt 0:02:44]} 20. Qxc3 {[%emt 0:02:03]} Qxd6 {[%emt 0:01:53]} 21. Kf3 {[%emt 0:00:06]} Qc7 {[%emt 0:01:29]} 22. Bb2 {[%emt 0:02:46]} Rf7 {[%emt 0:03:08]} 23. Qe5 {[%emt 0:01:35]} d6 {[%emt 0:03:47]} 24. cxd6 {[%emt 0:01:12]} Qb7 {[%emt 0:00:01]} 25. Rab1 {[%emt 0:01:17]} c5+ {[%emt 0:00:24]} 26. Kg3 {[%emt 0:03:45]} Ne4+ {[%emt 0:03:27]} 27. Kh3 {[%emt 0:00:25]} Nf2+ {[%emt 0:00:29]} 0-1

[Event "SVK Extraliga 2019-20"]
[Site "Slovakia"]
[Date "2020.01.19"]
[Round "6.8"]
[White "Kovacik, Emil"]
[Black "Magat, Jozef"]
[Result "1-0"]
[ECO "B06"]
[WhiteElo "2109"]
[BlackElo "2053"]
[Annotator "NA"]
[PlyCount "75"]
[EventDate "2019.10.19"]
[EventType "team-tourn"]
[EventCountry "SVK"]
[SourceTitle "playchess.com"]
[Source "ChessBase"]
[SourceQuality "1"]
[WhiteTeam "Dubnica"]
[BlackTeam "Dunajov"]
[TimeControl "40/5400+30:1800+30"]

1. e4 {[%emt 0:00:07]} g6 {[%emt 0:00:00]} 2. d4 {[%emt 0:00:08]} Bg7 {[%emt 0:00:00]} 3. Nc3 {[%emt 0:00:22]} d6 {[%emt 0:00:23]} 4. f4 {[%emt 0:03:36]} c5 {[%emt 0:02:25]} 5. dxc5 {[%emt 0:01:13]} Bxc3+ {[%emt 0:03:28]} 6. bxc3 {[%emt 0:00:13]} dxc5 {[%emt 0:00:11]} 7. Qxd8+ {[%emt 0:21:48]} Kxd8 {[%emt 0:00:11]} 8. Be3 {[%emt 0:00:18]} b6 {[%emt 0:06:10]} 9. Bc4 {[%emt 0:03:57]} e6 {[%emt 0:05:54]} 10. O-O-O+ {[%emt 0:19:30]} Ke7 {[%emt 0:08:02]} 11. Bf2 {[%emt 0:03:30]} Bb7 {[%emt 0:23:41]} 12. Bh4+ {[%emt 0:02:41]} f6 {[%emt 0:01:14]} 13. Nf3 {[%emt 0:01:01]} Nc6 {[%emt 0:06:51]} 14. e5 {[%emt 0:09:24]} Rd8 {[%emt 0:12:58]} 15. Rde1 {[%emt 0:04:06]} Bc8 {[%emt 0:09:16]} 16. exf6+ {[%emt 0:03:31]} Nxf6 {[%emt 0:00:25]} 17. Ng5 {[%emt 0:00:17]} Rd6 {[%emt 0:04:20]} 18. Ne4 {[%emt 0:01:51]} Rf8 {[%emt 0:00:02]} 19. Nxf6 {[%emt 0:04:19]} Rxf6 {[%emt 0:00:05]} 20. Rd1 {[%emt 0:00:47]} Rxd1+ {[%emt 0:01:22]} 21. Rxd1 {[%emt 0:00:03]} Kf7 {[%emt 0:00:43]} 22. Bxf6 {[%emt 0:00:26]} Kxf6 {[%emt 0:00:02]} 23. Bb5 {[%emt 0:04:30]} Ne7 {[%emt 0:01:33]} 24. g3 {[%emt 0:02:29]} Nd5 {[%emt 0:01:44]} 25. Kd2 {[%emt 0:03:29]} Bb7 {[%emt 0:02:22]} 26. c4 {[%emt 0:02:05]} Ne7 {[%emt 0:02:08]} 27. Ke2 {[%emt 0:00:18]} Bc8 {[%emt 0:02:20]} 28. Rd8 {[%emt 0:00:19]} e5 {[%emt 0:01:01]} 29. Rd6+ {[%emt 0:02:25]} Kf7 {[%emt 0:02:28]} 30. fxe5 {[%emt 0:00:18]} Be6 {[%emt 0:00:23]} 31. Kd3 {[%emt 0:00:30]} Nf5 {[%emt 0:01:13]} 32. Rc6 {[%emt 0:00:42]} Nd4 {[%emt 0:00:31]} 33. Rc7+ {[%emt 0:00:02]} Kg8 {[%emt 0:00:20]} 34. Bd7 {[%emt 0:01:41]} Kf7 {[%emt 0:01:33]} 35. Bc8+ {[%emt 0:00:13]} Kf8 {[%emt 0:00:32]} 36. Bxe6 {[%emt 0:00:12]} Nxe6 {[%emt 0:00:00]} 37. Rxa7 {[%emt 0:00:11]} Ng5 {[%emt 0:01:12]} 38. Ke3 {[%emt 0:00:44]} 1-0

[Event "SVK Extraliga 2019-20"]
[Site "Slovakia"]
[Date "2020.01.19"]
[Round "6.8"]
[White "Macko, Peter"]
[Black "Szucs, Vladimir"]
[Result "1/2-1/2"]
[ECO "C12"]
[WhiteElo "2053"]
[BlackElo "2139"]
[Annotator "NA"]
[PlyCount "84"]
[EventDate "2019.10.19"]
[EventType "team-tourn"]
[EventCountry "SVK"]
[SourceTitle "playchess.com"]
[Source "ChessBase"]
[SourceQuality "1"]
[WhiteTeam "Bratislava"]
[BlackTeam "Podhajska"]
[TimeControl "40/5400+30:1800+30"]

1. e4 {[%emt 0:00:00]} e6 {[%emt 0:00:00]} 2. d4 {[%emt 0:00:00]} d5 {[%emt 0:00:02]} 3. Nc3 {[%emt 0:07:36]} Nf6 {[%emt 0:00:21]} 4. Bg5 {[%emt 0:00:42]} Bb4 {[%emt 0:00:55]} 5. e5 {[%emt 0:05:03]} h6 {[%emt 0:00:21]} 6. Bd2 {[%emt 0:05:24]} Bxc3 {[%emt 0:00:37]} 7. bxc3 {[%emt 0:00:15]} Ne4 {[%emt 0:00:14]} 8. Bd3 {[%emt 0:07:09]} Nxd2 {[%emt 0:00:30]} 9. Qxd2 {[%emt 0:08:22]} c5 {[%emt 0:01:15]} 10. f4 {[%emt 0:07:19]} Nc6 {[%emt 0:09:23]} 11. Nf3 {[%emt 0:00:22]} Qb6 {[%emt 0:03:52]} 12. Be2 {[%emt 0:04:20]} Qa5 {[%emt 0:11:33]} 13. O-O {[%emt 0:20:16]} cxd4 {[%emt 0:11:04]} 14. Nxd4 {[%emt 0:00:22]} Nxd4 {[%emt 0:00:14]} 15. Qxd4 {[%emt 0:00:12]} O-O {[%emt 0:02:08]} 16. Qb4 {[%emt 0:11:09]} Qc7 {[%emt 0:01:30]} 17. c4 {[%emt 0:01:42]} dxc4 {[%emt 0:02:08]} 18. Bxc4 {[%emt 0:06:16]} Bd7 {[%emt 0:01:01]} 19. Rad1 {[%emt 0:01:04]} Rac8 {[%emt 0:03:59]} 20. Bb3 {[%emt 0:00:33]} Bc6 {[%emt 0:03:56]} 21. Rf2 {[%emt 0:05:40]} Rfd8 {[%emt 0:01:24]} 22. Rfd2 {[%emt 0:01:23]} Rxd2 {[%emt 0:01:06]} 23. Qxd2 {[%emt 0:01:28]} Qb6+ {[%emt 0:03:18]} 24. Qf2 {[%emt 0:01:43]} Rd8 {[%emt 0:03:27]} 25. Rxd8+ {[%emt 0:01:46]} Qxd8 {[%emt 0:00:06]} 26. h3 {[%emt 0:00:29]} b6 {[%emt 0:02:53]} 27. f5 {[%emt 0:00:44]} exf5 {[%emt 0:04:11]} 28. Qxf5 {[%emt 0:00:40]} Qd4+ {[%emt 0:06:04]} 29. Kh1 {[%emt 0:00:44]} Bd5 {[%emt 0:02:37]} 30. Kh2 {[%emt 0:01:08]} Qe4 {[%emt 0:02:25]} 31. Qxe4 {[%emt 0:00:57]} Bxe4 {[%emt 0:00:06]} 32. Kg3 {[%emt 0:00:33]} Kf8 {[%emt 0:00:53]} 33. Kf2 {[%emt 0:00:08]} Ke7 {[%emt 0:00:18]} 34. g3 {[%emt 0:00:17]} f6 {[%emt 0:01:18]} 35. Ke3 {[%emt 0:01:10]} Bg2 {[%emt 0:01:19]} 36. exf6+ {[%emt 0:00:13]} Kxf6 {[%emt 0:00:07]} 37. h4 {[%emt 0:00:16]} Ke5 {[%emt 0:00:17]} 38. a3 {[%emt 0:00:59]} g5 {[%emt 0:01:11]} 39. hxg5 {[%emt 0:00:32]} hxg5 {[%emt 0:00:04]} 40. Bc4 {[%emt 0:00:30]} a5 {[%emt 0:01:44]} 41. Be2 {[%emt 0:13:03]} Bc6 {[%emt 0:01:34]} 42. Bd3 {[%emt 0:01:01]} Bd5 {[%emt 0:00:59] Ke4+} 1/2-1/2